fUST/lending_fUST_20240507
["ID","MTS","AMOUNT","RATE_DAILY","PERIOD"]
[326532823,1715082640835,-412.67758215,0.00014186,2]
[326532824,1715082640845,-4913.4054957,0.00014186,2]
[326532852,1715082642944,-752.84226243,0.00014185,2]
[326532869,1715082643096,-803.50534785,0.00014185,2]
[326532871,1715082643109,-337.79209014,0.00014185,2]
[326532873,1715082643119,-2034.86309343,0.00014186,2]
[326532875,1715082643129,-266.41234962,0.00014285,2]
[326532876,1715082643140,-2437.71674813,0.00014286,2]
[326532878,1715082643151,-718.70282773,0.00014286,2]
[326532880,1715082643161,-1647.10013232,0.00014286,2]
[326533235,1715082646481,-154.73694719,0.00014184,2]
[326533237,1715082646491,-33903.69351861,0.00014285,2]
[326533240,1715082646528,-3852.76366909,0.00014285,2]
[326533476,1715082650333,-3457.00671515,0.00014285,2]
[326533477,1715082650348,-746.4,0.00014285,2]
[326533496,1715082685598,154.73694719,9.999e-05,2]
[326533497,1715082706881,154.73694719,9.999e-05,2]
[326533498,1715082716695,315.31138865,9.999e-05,2]
[326533499,1715082725223,154.73694719,9.999e-05,2]
[326533500,1715082731112,154.73694719,9.999e-05,2]
[326533501,1715082732633,521.86939753,9.999e-05,2]
[326533502,1715082735849,3456.32003759,9.999e-05,2]
[326533504,1715082740282,150.74373565,0.00021941,30]
[326533505,1715082740359,150.74373565,0.00021502,120]
[326533507,1715082798053,379.91489838,9.999e-05,2]
[326533508,1715082838850,1348.06749317,9.999e-05,2]
[326533509,1715082845775,469.47096608,9.999e-05,2]
[326533510,1715082863148,292.10085152,9.999e-05,2]
[326533511,1715082884482,1623.69250947,9.999e-05,2]
[326533512,1715082929321,5000.0,0.00027,30]
[326533513,1715082947618,409.73086388,9.999e-05,2]
[326533514,1715082949120,816.63039643,9.999e-05,2]
[326533515,1715082965273,412.67758215,9.999e-05,2]
[326533516,1715082986011,5000.0,0.000211,9]
[326533517,1715082986949,483.90729918,9.999e-05,2]
[326533518,1715082988096,718.70282773,9.999e-05,2]
[326533519,1715083012802,150.74373565,0.00021715,30]
[326533520,1715083012879,150.74373565,0.0002128,120]
[326533521,1715083017538,1379.95237433,9.999e-05,2]
[326533522,1715083035791,5000.0,0.00027,30]
[326533523,1715083071361,156.39130606,9.999e-05,2]
[326533524,1715083084158,5000.0,0.00027,30]
[326533525,1715083134379,5000.0,0.00027,30]
[326533526,1715083248152,483.90729918,9.999e-05,2]
[326533527,1715083261207,718.70282773,9.999e-05,2]
[326533528,1715083328237,5000.0,0.00027,30]
[326533530,1715083335088,156.39130606,9.999e-05,2]
[326533531,1715083455151,4387.55027517,0.000211,9]
[326533532,1715083498830,154.73694719,9.999e-05,2]
[326533533,1715083501741,150.74373565,0.00021603,30]
[326533534,1715083502763,150.74373565,0.00021171,120]
[326533535,1715083757800,1512.9285139,0.00010097,2]
[326534116,1715083839128,-2460.14627829,0.00011088,2]
[326534118,1715083839139,-1882.10974914,0.00011088,2]
[326534121,1715083839163,-1354.54172732,0.00011089,2]
[326534272,1715083842959,-798.52199349,0.00011089,2]
[326534274,1715083842969,-2629.7346858,0.00011089,2]
[326534275,1715083842979,-23998.82968308,0.00011089,2]
[326534318,1715083881127,5448.82087434,0.00010106,2]
[326534319,1715083881159,19451.17912566,0.00010106,2]
[326534320,1715083918835,158.16161974,9.999e-05,2]
[326534321,1715083959054,482.6,0.00027,30]
[326534323,1715084485463,24900.0,9.862e-05,2]
[326534324,1715084521485,5000.0,0.00027,30]
[326534325,1715084552407,2086.45912019,9.862e-05,2]
[326534326,1715084572297,1000.0,0.00025,60]
[326534327,1715084593712,1000.0,0.00026,120]
[326534328,1715084644247,1000.0,0.00027,33]
[326534329,1715084972533,156.39130606,9.999e-05,2]
[326534330,1715084982349,816.26169973,9.999e-05,2]
[326534331,1715084985053,379.91489838,9.999e-05,2]
[326534332,1715084988475,309.2161094,9.999e-05,2]
[326534333,1715084989244,1940.44245287,9.999e-05,2]
[326534334,1715084990520,1336.28920915,9.999e-05,2]
[326534335,1715084998977,5301.26870806,9.999e-05,2]
[326534336,1715084999629,447.0404404,9.999e-05,2]
[326534337,1715085001228,364.36028892,9.999e-05,2]
[326534338,1715085003592,2086.45912019,9.999e-05,2]
[326534339,1715085005551,16121.01632336,9.999e-05,2]
[326534340,1715085009213,1042.87658312,9.999e-05,2]
[326534341,1715085015353,409.73086388,9.999e-05,2]
[326534342,1715085020764,2086.45912019,9.999e-05,2]
[326534343,1715085023506,363.58116592,9.999e-05,2]
[326534344,1715085025207,12811.34471616,9.742e-05,2]
[326534345,1715085025234,12088.65528384,9.742e-05,2]
[326534346,1715085025738,4308.8457694,9.999e-05,2]
[326534347,1715085036300,696.23986202,9.999e-05,2]
[326534413,1715085037345,-2153.06372081,0.00010733,2]
[326534415,1715085037354,-361.66903909,0.00010733,2]
[326534417,1715085037364,-15691.05079064,0.00010733,2]
[326534419,1715085037373,-285.99625397,0.00010733,2]
[326534421,1715085037382,-3055.64456558,0.00010734,2]
[326534423,1715085037391,-2629.7346858,0.00010735,2]
[326534425,1715085037400,-36477.09980558,0.00010735,2]
[326534592,1715085116562,379.91489838,9.999e-05,2]
[326534593,1715085123195,309.2161094,9.999e-05,2]
[326534595,1715085294082,1333.36359115,0.0001,2]
[326534597,1715085456516,154.76784823,9.999e-05,2]
[326534599,1715085557393,24900.0,9.563e-05,2]
[326534600,1715085595731,6948.26858913,9.999e-05,2]
[326534601,1715085900366,2086.15678154,9.999e-05,2]
[326534602,1715085904702,281.09538641,9.999e-05,2]
[326534603,1715085910494,154.76784823,9.999e-05,2]
[326534604,1715085922401,2629.7346858,9.999e-05,2]
[326534605,1715085925197,19219.54262117,9.999e-05,2]
[326534606,1715085926991,281.09538641,9.999e-05,2]
[326534607,1715085929917,154.76784823,9.999e-05,2]
[326534608,1715085936414,412.67758215,9.999e-05,2]
[326534609,1715085937655,315.31138865,9.999e-05,2]
[326534610,1715085941191,1348.06749317,9.999e-05,2]
[326534611,1715085943925,897.96167186,9.999e-05,2]
[326534612,1715085944209,1623.69250947,9.999e-05,2]
[326534613,1715085945137,10943.1329647,9.999e-05,2]
[326534614,1715085946640,223.06351221,9.999e-05,2]
[326534615,1715085948506,154.76784823,9.999e-05,2]
[326534616,1715085949832,289.33641641,9.999e-05,2]
[326534617,1715085954117,527.50907274,9.999e-05,2]
[326534618,1715085955938,1092.87842809,9.999e-05,2]
[326534619,1715085960540,1578.54242901,9.999e-05,2]
[326534620,1715086011312,412.67758215,9.999e-05,2]
[326534621,1715086024960,154.76784823,9.999e-05,2]
[326534622,1715086034304,1092.87842809,9.999e-05,2]
[326534624,1715086223072,1647.59428323,9.544e-05,2]
[326534625,1715086223098,23252.40571677,9.544e-05,2]
[326534637,1715086233422,-15691.05079064,0.00010481,2]
[326534638,1715086233432,-3055.64456558,0.00010482,2]
[326534640,1715086233442,-5301.26870806,0.00010482,2]
[326534642,1715086233451,-203.87238744,0.00010488,2]
[326534643,1715086233461,-162.19860968,0.00010521,2]
[326534644,1715086233471,-162.19860966,0.00010556,2]
[326534645,1715086233480,-231.28285559,0.00010586,2]
[326534646,1715086233491,-280.20430206,0.00010586,2]
[326534647,1715086233501,-318.95816468,0.00010586,2]
[326534648,1715086233511,-1463.45572688,0.00010586,2]
[326534649,1715086233520,-1646.39871341,0.00010586,2]
[326534650,1715086233529,-535.12696138,0.00010586,2]
[326534651,1715086233543,-1540.90509374,0.00010586,2]
[326534652,1715086233552,-510.43344478,0.00010586,2]
[326534653,1715086233561,-155.18344662,0.00010586,2]
[326534654,1715086233571,-1169.46130429,0.00010586,2]
[326534655,1715086233580,-155.68594529,0.00010587,2]
[326534656,1715086233592,-1491.50040189,0.00010587,2]
[326534657,1715086233601,-20587.72468355,0.00010588,2]
[326534733,1715086250838,-253.70305445,0.00010481,2]
[326534736,1715086250850,-1899.36066636,0.00010481,2]
[326534738,1715086250860,-3055.64456558,0.00010587,2]
[326534741,1715086250870,-5301.26870806,0.00010587,2]
[326534743,1715086250879,-10951.17830418,0.00010588,2]
[326534745,1715086250895,-25661.47379736,0.00010588,2]
[326534753,1715086773471,4899.5670815,9.477e-05,2]
[326534754,1715087065434,154.75239617,9.477e-05,2]
[326534755,1715087071965,718.70282773,9.999e-05,2]
[326534756,1715087073350,224.1414941,9.477e-05,2]
[326534757,1715087075343,19219.54262117,9.477e-05,2]
[326534758,1715087077384,1523.18753707,9.477e-05,2]
[326534759,1715087082793,904.17611442,9.999e-05,2]
[326534760,1715087084910,281.05268358,9.477e-05,2]
[326534761,1715087086249,904.17611442,9.999e-05,2]
[326534762,1715087086895,155.16899014,9.477e-05,2]
[326534763,1715087087991,224.1414941,9.477e-05,2]
[326534764,1715087092905,11399.15009028,9.477e-05,2]
[326534765,1715087101329,1379.95237433,9.999e-05,2]
[326534766,1715087105469,469.47096608,9.999e-05,2]
[326534767,1715087106036,224.58096074,9.477e-05,2]
[326534768,1715087111953,180.86144692,0.0001,2]
[326534769,1715087126938,1336.28920915,9.999e-05,2]
[326534770,1715087139711,186.55115227,9.999e-05,2]
[326534771,1715087160295,-187.46856271,0.00010377,2]
[326534772,1715087163350,-12.53143729,0.00010378,2]
[326534773,1715087168934,4099484.28657889,0.0002523,30]
[326534780,1715087181987,-200.0,0.00010378,2]
[326534781,1715087185247,1379.95237433,9.999e-05,2]
[326534782,1715087189637,904.17611442,9.999e-05,2]
[326534783,1715087199403,-150.0,0.00010376,2]
[326534784,1715087211453,154.75239617,9.999e-05,2]
[326534785,1715087213729,-2905.64456558,0.00010376,2]
[326534786,1715087214926,-94.35543442,0.00010376,2]
[326534787,1715087252650,521.86939753,9.999e-05,2]
[326534788,1715087275688,3456.32003759,9.999e-05,2]
[326534789,1715087371671,154.75239617,9.999e-05,2]
[326534790,1715087420369,-3456.32003759,0.00010371,2]
[326534791,1715087420418,-3370.97977853,0.00010371,2]
[326534795,1715087433479,-55920.80280485,0.00010371,2]
[326534797,1715087433490,-15691.05079064,0.00010372,2]
[326534798,1715087433500,-818.51485632,0.00010373,2]
[326534800,1715087433513,-154.75239617,0.00010373,2]
[326534802,1715087433527,-501.61052854,0.00010374,2]
[326534804,1715087433540,-239.2980631,0.00010374,2]
[326534806,1715087433552,-223.34536175,0.00010375,2]
[326534808,1715087433562,-1406.70189492,0.00010375,2]
[326534810,1715087433573,-340.66399555,0.00010376,2]
[326534812,1715087433584,-780.87953376,0.00010376,2]
[326534813,1715087433596,-162.19860966,0.00010381,2]
[326534815,1715087433608,-265.47095278,0.00010451,2]
[326534817,1715087433624,-617.19345182,0.00010452,2]
[326534819,1715087433634,-1347.83105685,0.00010453,2]
[326534820,1715087433657,-523.99537804,0.00010453,2]
[326534822,1715087433676,-546.0065455,0.00010454,2]
[326534824,1715087433693,-154.76784823,0.00010484,2]
[326534826,1715087433704,-169.86210084,0.00010488,2]
[326534828,1715087433717,-2039.001118,0.00010614,2]
[326534829,1715087433736,-154.75239617,0.00010735,2]
[326534830,1715087433749,-154.85629538,0.00010736,2]
[326534831,1715087433762,-185.96101104,0.00010736,2]
[326534832,1715087433772,-121.11003842,0.00010873,2]
[326534833,1715087435781,36905.33692237,0.00010271,2]
[326534834,1715087435810,15395.53197948,0.00010271,2]
[326534852,1715087443180,-3103.10000002,0.0001037,2]
[326534896,1715087449302,-1204.07687355,0.00010369,2]
[326534903,1715087471670,240.27596315,9.999e-05,2]
[326534904,1715087505609,3456.32003759,9.999e-05,2]
[326534905,1715087506958,3456.32003759,9.999e-05,2]
[326534906,1715087548730,2153.06372081,9.999e-05,2]
[326534907,1715087582356,154.75239617,9.999e-05,2]
[326534909,1715087659230,2153.06372081,9.999e-05,2]
[326534910,1715087671133,154.75239617,9.999e-05,2]
[326534911,1715087689337,8690.0,0.0001,2]
[326534912,1715087748154,154.75239617,9.999e-05,2]
[326534913,1715087797967,292.10085152,9.999e-05,2]
[326534914,1715087801384,151.94811846,0.00010269,2]
[326534917,1715087925707,16133.64168859,0.00010269,2]
[326534919,1715087991416,236.11595108,9.999e-05,2]
[326534922,1715088191894,169.86210084,0.00010269,2]
[326534923,1715088212656,3456.32003759,9.999e-05,2]
[326534924,1715088606664,5388.8406619,9.773e-05,2]
[326534932,1715088636055,-323.72450831,0.00010367,2]
[326534935,1715088636065,-1336.08187875,0.00010367,2]
[326534938,1715088636075,-180.930889,0.00010367,2]
[326534941,1715088636084,-155.41142149,0.00010367,2]
[326534944,1715088636095,-815.983981,0.00010367,2]
[326534948,1715088636105,-1578.01513402,0.00010367,2]
[326534950,1715088636114,-68.0589283,0.00010367,2]
[326535101,1715088643698,-1062.96406418,0.00010367,2]
[326535104,1715088643708,-189.14473722,0.00010367,2]
[326535107,1715088643717,-220.72598464,0.00010367,2]
[326535112,1715088643728,-331.56476657,0.00010367,2]
[326535116,1715088643738,-1927.43200183,0.00010367,2]
[326535121,1715088643748,-307.48262546,0.00010368,2]
[326535127,1715088643759,-16.91102298,0.00010368,2]
[326535132,1715088643772,-1256.0851168,0.00010368,2]
[326535138,1715088643785,-2591.57873367,0.00010368,2]
[326535144,1715088643796,-6789.53478703,0.00010369,2]
[326535150,1715088643808,-14809.54691038,0.00010369,2]
[326535208,1715088650255,-0.01131799,0.00010369,2]
[326535209,1715088650267,-1586.30336512,0.00010369,2]
[326535210,1715088650279,-769.90571874,0.00010369,2]
[326535239,1715089032890,155.63834256,0.00010269,2]
[326535370,1715089845651,154.75239617,9.999e-05,2]
[326535700,1715089859863,-8760.48677191,0.00010369,2]
[326535703,1715089859873,-222.07977483,0.00010369,2]
[326535705,1715089859883,-7293.3978489,0.00010369,2]
[326535707,1715089859892,-155.93588005,0.00010764,2]
[326535709,1715089859903,-461.37851848,0.00010873,2]
[326535710,1715089859912,-380.82705544,0.00010873,2]
[326535711,1715089859923,-187.87636851,0.00010873,2]
[326535712,1715089859932,-155.63834252,0.00010935,2]
[326535713,1715089859941,-190.16717406,0.00011084,2]
[326535714,1715089859950,-1912.45574053,0.00011088,2]
[326535715,1715089859960,-1135.06325195,0.00011088,2]
[326535716,1715089859969,-153.0,0.000111,2]
[326535717,1715089859979,-306.0,0.000111,2]
[326535718,1715089859989,-153.0,0.000111,2]
[326535719,1715089859999,-153.0,0.000111,2]
[326535720,1715089860009,-306.0,0.000111,2]
[326535721,1715089860034,-153.0,0.000111,2]
[326535722,1715089860043,-153.0,0.000111,2]
[326535723,1715089860053,-433.5464271,0.000111,2]
[326535724,1715089860062,-156.539247,0.000111,2]
[326535725,1715089860072,-245.66418244,0.00011105,2]
[326535726,1715089860082,-153.4425351,0.000112,2]
[326535727,1715089860091,-155.63834252,0.00011601,2]
[326535728,1715089860101,-153.0,0.0001189,2]
[326535729,1715089860111,-307.9780015,0.0001189,2]
[326535730,1715089860121,-153.0,0.00012027,2]
[326535731,1715089860131,-428.96922355,0.00012116,2]
[326535732,1715089860140,-155.63834252,0.00012267,2]
[326535733,1715089860150,-489.29539367,0.00012329,2]
[326535734,1715089860159,-155.63834252,0.00012933,2]
[326535735,1715089860169,-494.0,0.00013504,2]
[326535736,1715089860178,-296.538,0.00013504,2]
[326535737,1715089860188,-211.521,0.00013504,2]
[326535738,1715089860198,-24329.45510056,0.00013598,2]
[326535739,1715089860208,-48658.91020111,0.00013599,2]
[326535740,1715089860217,-55555.0,0.00013599,2]
[326535741,1715089860227,-18786.29838293,0.00013599,2]
[326535742,1715089860237,-2000.0,0.00013599,2]
[326535743,1715089860247,-155.63834252,0.00013599,2]
[326535744,1715089860257,-432.491013,0.00013599,2]
[326535745,1715089860267,-432.491013,0.00013599,2]
[326535746,1715089860277,-151.0,0.00013599,2]
[326535747,1715089860288,-151.0,0.00013699,2]
[326535748,1715089860297,-151.0,0.00013699,2]
[326535749,1715089860307,-151.0,0.00013699,2]
[326535750,1715089860317,-151.0,0.00013699,2]
[326535751,1715089860327,-151.0,0.00013699,2]
[326535752,1715089860337,-151.0,0.00013699,2]
[326535753,1715089860347,-151.0,0.00013699,2]
[326535754,1715089860357,-151.0,0.00013699,2]
[326535755,1715089860367,-151.777943,0.00013699,2]
[326535756,1715089860377,-2598.985473,0.00013699,2]
[326535757,1715089860387,-2598.985473,0.00013699,2]
[326535758,1715089860396,-151.0,0.00013699,2]
[326535759,1715089860406,-224.506746,0.00013699,2]
[326535760,1715089860415,-705.943443,0.00013699,2]
[326535761,1715089860425,-151.0,0.00013699,2]
[326535762,1715089860435,-705.943443,0.00013699,2]
[326535763,1715089860445,-151.0,0.00013699,2]
[326535764,1715089860454,-151.0,0.00013699,2]
[326535765,1715089860465,-151.0,0.00013699,2]
[326535766,1715089860475,-151.0,0.00013699,2]
[326535767,1715089860484,-151.0,0.00013699,2]
[326535768,1715089860493,-151.0,0.00013699,2]
[326535769,1715089860503,-156.054435,0.00013699,2]
[326535770,1715089860513,-1616.171563,0.00013699,2]
[326535771,1715089860531,-1616.171563,0.00013699,2]
[326535772,1715089860549,-1616.171563,0.00013699,2]
[326535773,1715089860559,-1616.171563,0.00013699,2]
[326535774,1715089860568,-1616.171563,0.00013699,2]
[326535775,1715089860578,-1616.171563,0.00013699,2]
[326535776,1715089860588,-1616.171563,0.00013699,2]
[326535777,1715089860597,-400.12271619,0.00013699,2]
[326535806,1715090243401,447.0404404,9.999e-05,2]
[326535815,1715090721136,2460.14627829,9.999e-05,2]
[326535858,1715090994440,522.7057971,9.999e-05,2]
[326535902,1715091035577,-413.24156997,0.00012565,2]
[326535904,1715091035588,-24900.0,0.00012565,2]
[326535906,1715091035600,-150.0,0.0001324,2]
[326535908,1715091035610,-154.32628915,0.00013404,2]
[326535910,1715091035619,-150.0,0.00013504,2]
[326535911,1715091035629,-158.45520766,0.00013596,2]
[326535913,1715091035638,-456.97952061,0.00013596,2]
[326535914,1715091035647,-1583.16156104,0.00013596,2]
[326535915,1715091035666,-1796.48142971,0.00013596,2]
[326535916,1715091035677,-5016.87848417,0.00013596,2]
[326535917,1715091035687,-413.79090332,0.00013596,2]
[326535918,1715091035696,-182.82663427,0.00013596,2]
[326535919,1715091035705,-276.30685888,0.00013597,2]
[326535920,1715091035715,-307.60705671,0.00013597,2]
[326535921,1715091035724,-59291.78258338,0.00013598,2]
[326535922,1715091035736,-46244.51063539,0.00013599,2]
[326535998,1715091045898,-9310.48936461,0.00013599,2]
[326536003,1715091045908,-2000.0,0.00013599,2]
[326536007,1715091045919,-2454.03089709,0.00013599,2]
[326536012,1715091045928,-187.77608324,0.00013599,2]
[326536016,1715091045938,-1049.59457327,0.00013697,2]
[326536021,1715091045947,-1413.79862246,0.00013698,2]
[326536025,1715091045961,-400.1176732,0.00013698,2]
[326536052,1715091049264,-93.53559339,0.00013698,2]
[326536056,1715091049274,-1683.2701669,0.00013699,2]
[326536059,1715091049283,-1106.390328,0.00013699,2]
[326536061,1715091049292,-2434.4450788,0.00013699,2]
[326536062,1715091049302,-3098.89000644,0.00013699,2]
[326536063,1715091049314,-13529.13702357,0.00013699,2]
[326536064,1715091049324,-151.0,0.00013699,2]
[326536065,1715091049334,-151.0,0.00013699,2]
[326536066,1715091049344,-151.430674,0.00013699,2]
[326536067,1715091049354,-151.0,0.00013699,2]
[326536068,1715091049364,-151.0,0.00013699,2]
[326536069,1715091049373,-151.0,0.00013699,2]
[326536070,1715091049382,-210.759965,0.00013699,2]
[326536071,1715091049394,-151.0,0.00013699,2]
[326536072,1715091049404,-151.0,0.00013699,2]
[326536073,1715091049415,-151.0,0.00013699,2]
[326536074,1715091049425,-151.0,0.00013699,2]
[326536075,1715091049435,-151.0,0.00013699,2]
[326536076,1715091049445,-151.0,0.00013699,2]
[326536077,1715091049456,-151.0,0.00013699,2]
[326536078,1715091049466,-151.0,0.00013699,2]
[326536079,1715091049476,-151.0,0.00013699,2]
[326536080,1715091049485,-151.0,0.00013699,2]
[326536081,1715091049495,-151.0,0.00013699,2]
[326536082,1715091049505,-151.0,0.00013699,2]
[326536083,1715091049514,-151.0,0.00013699,2]
[326536084,1715091049524,-151.0,0.00013699,2]
[326536085,1715091049535,-151.0,0.00013699,2]
[326536086,1715091049544,-151.0,0.00013699,2]
[326536087,1715091049555,-151.0,0.00013699,2]
[326536088,1715091049564,-270.243799,0.00013699,2]
[326536089,1715091049574,-151.0,0.00013699,2]
[326536090,1715091049584,-151.0,0.00013699,2]
[326536091,1715091049594,-151.0,0.00013699,2]
[326536092,1715091049605,-151.0,0.00013699,2]
[326536093,1715091049614,-151.0,0.00013699,2]
[326536094,1715091049624,-270.174834,0.00013699,2]
[326536095,1715091049633,-151.0,0.00013699,2]
[326536096,1715091049642,-151.0,0.00013699,2]
[326536097,1715091049652,-161.02607,0.00013699,2]
[326536098,1715091049661,-151.0,0.00013699,2]
[326536099,1715091049671,-151.0,0.00013699,2]
[326536100,1715091049680,-151.0,0.00013699,2]
[326536101,1715091049690,-151.0,0.00013699,2]
[326536102,1715091049699,-151.0,0.00013699,2]
[326536103,1715091049708,-151.0,0.00013699,2]
[326536104,1715091049717,-154.827803,0.00013699,2]
[326536105,1715091049727,-151.0,0.00013699,2]
[326536106,1715091049737,-151.0,0.00013699,2]
[326536107,1715091049746,-151.0,0.00013699,2]
[326536108,1715091049756,-228.775352,0.00013699,2]
[326536109,1715091049765,-151.0,0.00013699,2]
[326536110,1715091049775,-151.0,0.00013699,2]
[326536111,1715091049787,-151.0,0.00013699,2]
[326536112,1715091049798,-163.018283,0.00013699,2]
[326536113,1715091049808,-822.033381,0.00013699,2]
[326536114,1715091049817,-822.033381,0.00013699,2]
[326536115,1715091049827,-822.033381,0.00013699,2]
[326536116,1715091049837,-822.033381,0.00013699,2]
[326536117,1715091049846,-822.033381,0.00013699,2]
[326536118,1715091049856,-822.033381,0.00013699,2]
[326536119,1715091049866,-822.033381,0.00013699,2]
[326536120,1715091049875,-822.033381,0.00013699,2]
[326536121,1715091049885,-822.033381,0.00013699,2]
[326536122,1715091049895,-822.033381,0.00013699,2]
[326536123,1715091049904,-822.033381,0.00013699,2]
[326536124,1715091049914,-822.033381,0.00013699,2]
[326536125,1715091049923,-822.033381,0.00013699,2]
[326536126,1715091049934,-822.033381,0.00013699,2]
[326536127,1715091049944,-822.033381,0.00013699,2]
[326536128,1715091049955,-822.033381,0.00013699,2]
[326536129,1715091049964,-822.033381,0.00013699,2]
[326536130,1715091049975,-822.033381,0.00013699,2]
[326536131,1715091049986,-822.033381,0.00013699,2]
[326536132,1715091049996,-822.033382,0.00013699,2]
[326536133,1715091050005,-151.0,0.00013699,2]
[326536134,1715091050015,-151.0,0.00013699,2]
[326536135,1715091050025,-151.0,0.00013699,2]
[326536136,1715091050035,-151.0,0.00013699,2]
[326536137,1715091050044,-222.758503,0.00013699,2]
[326536138,1715091050054,-389.241911,0.00013699,2]
[326536139,1715091050063,-152.250838,0.00013699,2]
[326536140,1715091050073,-389.241911,0.00013699,2]
[326536141,1715091050082,-389.241911,0.00013699,2]
[326536142,1715091050097,-389.241911,0.00013699,2]
[326536143,1715091050108,-389.241911,0.00013699,2]
[326536144,1715091050118,-389.241911,0.00013699,2]
[326536145,1715091050127,-389.241911,0.00013699,2]
[326536146,1715091050137,-389.241911,0.00013699,2]
[326536147,1715091050147,-389.241911,0.00013699,2]
[326536148,1715091050157,-389.241911,0.00013699,2]
[326536149,1715091050167,-389.241911,0.00013699,2]
[326536150,1715091050179,-389.241911,0.00013699,2]
[326536151,1715091050331,-389.241911,0.00013699,2]
[326536152,1715091050342,-1030.50538,0.00013699,2]
[326536153,1715091050353,-389.241911,0.00013699,2]
[326536154,1715091050363,-1030.50538,0.00013699,2]
[326536155,1715091050372,-1030.50538,0.00013699,2]
[326536156,1715091050382,-1030.50538,0.00013699,2]
[326536157,1715091050392,-389.241911,0.00013699,2]
[326536158,1715091050402,-1030.50538,0.00013699,2]
[326536159,1715091050412,-389.241911,0.00013699,2]
[326536160,1715091050421,-1030.50538,0.00013699,2]
[326536161,1715091050430,-389.241911,0.00013699,2]
[326536162,1715091050440,-1030.50538,0.00013699,2]
[326536163,1715091050450,-389.241911,0.00013699,2]
[326536164,1715091050459,-1030.50538,0.00013699,2]
[326536165,1715091050469,-389.241911,0.00013699,2]
[326536166,1715091050481,-389.24192,0.00013699,2]
[326536167,1715091050490,-1030.50538,0.00013699,2]
[326536168,1715091050500,-1030.50538,0.00013699,2]
[326536169,1715091050509,-1030.50538,0.00013699,2]
[326536170,1715091050519,-1030.50538,0.00013699,2]
[326536171,1715091050528,-1030.50538,0.00013699,2]
[326536172,1715091050538,-1030.50538,0.00013699,2]
[326536173,1715091050547,-1030.50538,0.00013699,2]
[326536174,1715091050556,-1030.50538,0.00013699,2]
[326536175,1715091050566,-1030.50538,0.00013699,2]
[326536176,1715091050576,-1030.50538,0.00013699,2]
[326536177,1715091050586,-1030.50538,0.00013699,2]
[326536178,1715091050595,-1030.505379,0.00013699,2]
[326536179,1715091050605,-151.46529,0.00013699,2]
[326536180,1715091050615,-151.0,0.00013699,2]
[326536181,1715091050624,-151.0,0.00013699,2]
[326536182,1715091050634,-151.0,0.00013699,2]
[326536183,1715091050643,-151.0,0.00013699,2]
[326536184,1715091050653,-152.954989,0.00013699,2]
[326536185,1715091050662,-151.0,0.00013699,2]
[326536186,1715091050671,-151.0,0.00013699,2]
[326536187,1715091050680,-151.0,0.00013699,2]
[326536188,1715091050689,-281.194518,0.00013699,2]
[326536189,1715091050698,-151.0,0.00013699,2]
[326536190,1715091050707,-151.0,0.00013699,2]
[326536191,1715091050716,-153.298558,0.00013699,2]
[326536192,1715091050725,-151.0,0.00013699,2]
[326536193,1715091050734,-151.0,0.00013699,2]
[326536194,1715091050743,-151.0,0.00013699,2]
[326536195,1715091050752,-151.0,0.00013699,2]
[326536196,1715091050761,-151.0,0.00013699,2]
[326536197,1715091050771,-151.0,0.00013699,2]
[326536198,1715091050780,-151.0,0.00013699,2]
[326536199,1715091050790,-151.0,0.00013699,2]
[326536200,1715091050799,-151.0,0.00013699,2]
[326536201,1715091050808,-151.0,0.00013699,2]
[326536202,1715091050817,-151.0,0.00013699,2]
[326536203,1715091050826,-151.0,0.00013699,2]
[326536204,1715091050835,-151.0,0.00013699,2]
[326536205,1715091050844,-151.0,0.00013699,2]
[326536206,1715091050855,-151.0,0.00013699,2]
[326536207,1715091050864,-151.0,0.00013699,2]
[326536208,1715091050874,-151.0,0.00013699,2]
[326536209,1715091050883,-151.534649,0.00013699,2]
[326536210,1715091050892,-151.0,0.00013699,2]